lending/lending_fUSD_20260325
["ID","MTS","AMOUNT","RATE_DAILY","PERIOD"]
[408903713,1774423838818,-625.58451892,0.00012534,2]
[408903714,1774423838828,-625.58451892,0.00012534,2]
[408903715,1774423838837,-625.58451892,0.00012534,2]
[408903716,1774423838846,-625.58451892,0.00012534,2]
[408903717,1774423838855,-624.22455258,0.00012534,2]
[408903718,1774423838864,-624.22455258,0.00012534,2]
[408903719,1774423838873,-624.22455258,0.00012534,2]
[408903720,1774423838883,-624.22455258,0.00012534,2]
[408903721,1774423838893,-624.22455258,0.00012534,2]
[408903722,1774423838903,-624.22455258,0.00012534,2]
[408903723,1774423838913,-624.22455258,0.00012534,2]
[408903724,1774423838922,-624.22455258,0.00012534,2]
[408903725,1774423838931,-624.22455258,0.00012534,2]
[408903726,1774423838940,-624.22455258,0.00012534,2]
[408903727,1774423838950,-624.22455258,0.00012534,2]
[408903728,1774423838959,-624.22455258,0.00012534,2]
[408903729,1774423838969,-624.22455258,0.00012534,2]
[408903730,1774423838980,-624.22455258,0.00012534,2]
[408903731,1774423838989,-624.22455258,0.00012534,2]
[408903732,1774423839003,-624.22455258,0.00012534,2]
[408903733,1774423839013,-624.22455258,0.00012534,2]
[408903734,1774423839023,-624.22455258,0.00012534,2]
[408903735,1774423839032,-624.22455258,0.00012534,2]
[408903736,1774423839042,-624.22455258,0.00012534,2]
[408903737,1774423839054,-624.22455258,0.00012534,2]
[408903738,1774423839063,-624.22455258,0.00012534,2]
[408903739,1774423839073,-624.22455258,0.00012534,2]
[408903740,1774423839082,-624.22455258,0.00012534,2]
[408903741,1774423839093,-624.22455258,0.00012534,2]
[408903742,1774423839102,-624.22455258,0.00012534,2]
[408903743,1774423839112,-624.22455258,0.00012534,2]
[408903744,1774423839122,-624.22455258,0.00012534,2]
[408903745,1774423839133,-624.22455258,0.00012534,2]
[408903746,1774423839143,-624.22455258,0.00012534,2]
[408903747,1774423839153,-624.22455258,0.00012534,2]
[408903748,1774423839162,-50946.3,0.00012535,2]
[408903749,1774423839172,-1189.64,0.00012535,2]
[408903750,1774423839183,-1000.0,0.00012535,2]
[408903751,1774423839193,-160.25384311,0.00012573,2]
[408903752,1774423839203,-160.24829059,0.00012573,2]
[408903753,1774423839213,-160.23230498,0.00012573,2]
[408903754,1774423839223,-500.0,0.00012573,2]
[408903755,1774423839232,-388.80205699,0.00012573,2]
[408903756,1774423839242,-500.13719438,0.00012573,2]
[408903757,1774423839251,-150.0,0.000126,2]
[408903758,1774423839261,-648.38,0.000126,2]
[408903759,1774423839271,-200.0,0.00012617,2]
[408903760,1774423839280,-500.0,0.00012617,2]
[408903761,1774423839289,-500.0,0.00012617,2]
[408903762,1774423839299,-151.0,0.00012617,2]
[408903763,1774423839308,-500.0,0.00012617,2]
[408903764,1774423839318,-500.0,0.00012617,2]
[408903765,1774423839327,-151.0,0.00012617,2]
[408903766,1774423839336,-500.0,0.00012617,2]
[408903767,1774423839346,-151.0,0.00012617,2]
[408903768,1774423839355,-500.0,0.00012617,2]
[408903769,1774423839368,-151.0,0.00012617,2]
[408903770,1774423839377,-500.0,0.00012617,2]
[408903771,1774423839387,-151.0,0.00012617,2]
[408903772,1774423839401,-151.0,0.00012617,2]
[408903773,1774423839411,-151.0,0.00012617,2]
[408903774,1774423839420,-151.0,0.00012617,2]
[408903775,1774423839430,-151.0,0.00012617,2]
[408903776,1774423839439,-151.0,0.00012617,2]
[408903777,1774423839449,-151.0,0.00012617,2]
[408903778,1774423839459,-186.82622924,0.00012624,2]
[408903779,1774423839468,-500.0,0.00012667,2]
[408903780,1774423839478,-500.15528333,0.00012667,2]
[408903781,1774423839487,-500.0,0.00012667,2]
[408903782,1774423839496,-369.73783683,0.00012667,2]
[408903783,1774423839506,-500.0,0.00012667,2]
[408903784,1774423839516,-500.30534857,0.00012667,2]
[408903785,1774423839526,-160.48722399,0.00012667,2]
[408903786,1774423839536,-160.25107155,0.00012667,2]
[408903787,1774423839545,-500.0,0.00012667,2]
[408903788,1774423839555,-500.0,0.00012667,2]
[408903789,1774423839564,-500.0,0.00012667,2]
[408903790,1774423839573,-500.0,0.00012667,2]
[408903791,1774423839583,-500.0,0.00012673,2]
[408903792,1774423839593,-501.12392041,0.00012673,2]
[408903793,1774423839602,-160.24630753,0.00012673,2]
[408903794,1774423839612,-160.25727932,0.00012673,2]
[408903795,1774423839622,-220.36024663,0.00012673,2]
[408903796,1774423839631,-160.2358454,0.00012673,2]
[408903797,1774423839641,-500.35186235,0.00012673,2]
[408903798,1774423839650,-501.14876687,0.00012673,2]
[408903799,1774423839659,-500.0,0.00012673,2]
[408903800,1774423839669,-227.03963617,0.00012673,2]
[408903801,1774423839679,-500.50577839,0.00012673,2]
[408903802,1774423839688,-500.0,0.00012673,2]
[408903803,1774423839698,-160.24817225,0.00012673,2]
[408903804,1774423839709,-500.0,0.00012673,2]
[408903805,1774423839719,-160.2480766,0.00012673,2]
[408903806,1774423839729,-543.10920901,0.00012673,2]
[408903807,1774423839739,-151.0,0.00012797,2]
[408903808,1774423839749,-856.4,0.00012808,2]
[408903809,1774423839762,-151.0,0.00012809,2]
[408903810,1774423839771,-151.0,0.00012816,2]
[408903811,1774423839781,-151.0,0.00012818,2]
[408903812,1774423839790,-235.89,0.00012821,2]
[408903813,1774423839800,-500.0,0.00012944,2]
[408903814,1774423839810,-172.0,0.00012988,2]
[408903815,1774423839819,-203.0,0.00013008,2]
[408903816,1774423839829,-856.4,0.00013082,2]
[408903817,1774423839838,-200.0,0.00013165,2]
[408903818,1774423839848,-186.82622918,0.0001317,2]
[408903819,1774423839857,-250.0,0.00013175,2]
[408903820,1774423839867,-1000.0,0.00013215,2]
[408903821,1774423839877,-500.0,0.00013315,2]
[408903822,1774423839886,-856.4,0.00013356,2]
[408903823,1774423839896,-3240.0,0.00013425,2]
[408903824,1774423839906,-2635.06993672,0.00013523,2]
[408903825,1774423839915,-250.0,0.00013532,2]
[408903826,1774423839925,-289.8006139,0.00013556,2]
[408903827,1774423839934,-255.0,0.00013613,2]
[408903828,1774423839945,-856.4,0.0001363,2]
[408903829,1774423839963,-203.0,0.00013693,2]
[408903830,1774423839973,-186.82622918,0.00013716,2]
[408903831,1774423839984,-420.0,0.00013741,2]
[408903832,1774423839994,-420.0,0.00013741,2]
[408903833,1774423840003,-1680.0,0.00013776,2]
[408903834,1774423840015,-2584.73707336,0.00013875,2]
[408903835,1774423840024,-197.2416,0.000139,2]
[408903836,1774423840034,-856.4,0.00013904,2]
[408903837,1774423840043,-99427.70921548,0.0001399,2]
[408903838,1774423840053,-507.0,0.00014,2]
[408903839,1774423840064,-1100.0,0.00014082,2]
[408903840,1774423840073,-2584.73707335,0.000141,2]
[408903841,1774423840083,-435.03662594,0.00014115,2]
[408903842,1774423840092,-500.0,0.00014164,2]
[408903843,1774423840102,-856.4,0.00014178,2]
[408903844,1774423840111,-2296.24409023,0.0001421,7]
[408903845,1774423840121,-581.72,0.00014211,2]
[408903846,1774423840131,-186.82622918,0.00014262,2]
[408903847,1774423840141,-2584.73707335,0.00014325,2]
[408903848,1774423840153,-7532.75,0.00014339,2]
[408903849,1774423840163,-1878.14,0.00014339,2]
[408903850,1774423840172,-1300.0,0.00014356,2]
[408903851,1774423840182,-203.0,0.00014377,2]
[408903853,1774423840191,-856.42080658,0.00014452,2]
[408903854,1774423840201,-2584.73707335,0.0001455,2]
[408903855,1774423840211,-154.30546706,0.00014674,2]
[408903856,1774423840221,-979.16666667,0.00014764,2]
[408903857,1774423840231,-160.0,0.00014764,2]
[408903858,1774423840241,-2584.73707335,0.00014775,2]
[408903859,1774423840250,-433.0,0.00014803,2]
[408903860,1774423840260,-186.82622918,0.00014808,2]
[408903861,1774423840269,-581.72,0.00014921,2]
[408903862,1774423840278,-2064.46610994,0.00015,2]
[408903863,1774423840288,-8037.03514038,0.00015,2]
[408903864,1774423840297,-2584.73707335,0.00015,2]
[408903865,1774423840308,-4995.72241814,0.00015,2]
[408903866,1774423840317,-203.0,0.00015062,2]
[408903867,1774423840327,-900.0,0.00015068,2]
[408903868,1774423840337,-587.0,0.00015076,2]
[408903869,1774423840347,-2351.0,0.00015153,2]
[408903870,1774423840356,-578.20924308,0.00015199,2]
[408903871,1774423840365,-721.12765535,0.00015199,2]
[408903872,1774423840374,-151.0,0.00015199,2]
[408903873,1774423840384,-500.0,0.00015199,2]
[408903874,1774423840393,-500.0,0.00015199,2]
[408903875,1774423840403,-500.0,0.00015199,2]
[408903876,1774423840412,-500.0,0.00015199,2]
[408903877,1774423840422,-274.90626101,0.00015199,2]
[408903878,1774423840431,-500.0,0.00015199,2]
[408903879,1774423840440,-319.08991671,0.00015199,2]
[408903880,1774423840450,-500.0,0.00015199,2]
[408903881,1774423840459,-500.0,0.00015199,2]
[408903882,1774423840468,-500.0,0.00015199,2]
[408903883,1774423840477,-151.0,0.00015199,2]
[408903884,1774423840487,-500.0,0.00015199,2]
[408903885,1774423840496,-500.0,0.00015199,2]
[408903886,1774423840506,-250.0,0.00015199,2]
[408903887,1774423840515,-500.0,0.00015199,2]
[408903888,1774423840524,-250.0,0.00015199,2]
[408903889,1774423840537,-500.0,0.00015199,2]
[408903890,1774423840548,-250.0,0.00015199,2]
[408903891,1774423840557,-500.0,0.00015199,2]
[408903892,1774423840566,-276.72318455,0.00015199,2]
[408903893,1774423840576,-174.61919141,0.00015199,2]
[408903894,1774423840585,-500.0,0.00015199,2]
[408903895,1774423840594,-500.0,0.00015199,2]
[408903896,1774423840605,-500.0,0.00015199,2]
[408903897,1774423840615,-743.50770149,0.00015199,2]
[408903898,1774423840625,-279.9045709,0.00015199,2]
[408903899,1774423840635,-200.0,0.00015199,2]
[408903900,1774423840645,-259.3618,0.000152,2]
[408903901,1774423840655,-2584.73707335,0.00015225,2]
[408903902,1774423840664,-500.0,0.00015254,2]
[408903903,1774423840675,-151.0,0.00015254,2]
[408903904,1774423840685,-500.0,0.00015309,2]
[408903905,1774423840695,-151.0,0.00015309,2]
[408903906,1774423840705,-186.82622918,0.00015354,2]
[408903907,1774423840715,-500.0,0.00015364,2]
[408903908,1774423840725,-151.0,0.00015364,2]
[408903909,1774423840735,-1262.0,0.00015417,2]
[408903910,1774423840745,-1216.0,0.00015417,2]
[408903911,1774423840755,-97.80061544,0.00015417,2]
[408903912,1774423840775,-826.19938456,0.00015417,2]
[408903913,1774423840784,-3763.0,0.00015417,2]
[408903914,1774423840795,-2467.0,0.00015417,2]
[408903915,1774423840804,-500.0,0.00015419,2]
[408903916,1774423840814,-151.0,0.00015419,2]
[408903917,1774423840825,-2584.73707335,0.0001545,2]
[408903918,1774423840835,-1100.0,0.00015452,2]
[408903919,1774423840844,-500.0,0.00015474,2]
[408903920,1774423840854,-151.0,0.00015474,2]
[408903921,1774423840865,-402.61,0.00015523,2]
[408903922,1774423840874,-500.0,0.00015529,2]
[408903923,1774423840884,-151.0,0.00015529,2]
[408903924,1774423840893,-233.150921,0.00015533,7]
[408903925,1774423840903,-284.230049,0.00015573,7]
[408903926,1774423840913,-500.0,0.00015584,2]
[408903927,1774423840923,-151.0,0.00015584,2]
[408903928,1774423840932,-422.88395274,0.00015586,2]
[408903929,1774423840942,-350.0,0.00015594,2]
[408903930,1774423840953,-2000.0,0.000156,2]
[408903931,1774423840963,-3783.821,0.00015614,2]
[408903932,1774423840978,-194.986,0.00015614,2]
[408903933,1774423840988,-581.72,0.00015632,2]
[408903934,1774423840998,-1586.93378641,0.00015634,2]
[408903935,1774423841008,-500.0,0.00015639,2]
[408903936,1774423841019,-151.0,0.00015639,2]
[408903937,1774423841029,-402.61,0.00015654,2]
[408903938,1774423841039,-2584.73707335,0.00015675,2]
[408903939,1774423841051,-500.0,0.00015694,2]
[408903940,1774423841060,-151.0,0.00015694,2]
[408903941,1774423841070,-1300.0,0.00015726,2]
[408903942,1774423841079,-150.0,0.00015731,2]
[408903943,1774423841089,-203.0,0.00015747,2]
[408903944,1774423841100,-151.0,0.00015747,2]
[408903945,1774423841110,-181.08010149,0.00015747,2]
[408903946,1774423841120,-771.01748645,0.00015747,2]
[408903947,1774423841131,-290.26104003,0.00015747,2]
[408903948,1774423841140,-200.0,0.00015747,2]
[408903949,1774423841150,-500.0,0.00015749,2]
[408903950,1774423841159,-151.0,0.00015749,2]
[408903951,1774423841168,-500.0,0.00015753,2]
[408903952,1774423841177,-150.0,0.00015802,2]
[408903953,1774423841187,-835.07653,0.0001584,2]
[408903954,1774423841196,-835.07653,0.0001584,2]
[408903955,1774423841206,-835.07653,0.0001585,2]
[408903956,1774423841219,-500.0,0.00015872,2]
[408903957,1774423841228,-200.0,0.00015872,2]
[408903958,1774423841238,-500.0,0.00015873,2]
[408903959,1774423841247,-608.86332032,0.00015873,2]
[408903960,1774423841256,-500.0,0.00015873,2]
[408903961,1774423841266,-500.0,0.00015873,2]
[408903962,1774423841275,-500.0,0.00015873,2]
[408903963,1774423841284,-500.0,0.00015873,2]
[408903964,1774423841294,-505.64072652,0.00015873,2]
[408903965,1774423841303,-500.0,0.00015873,2]
[408903966,1774423841312,-500.0,0.00015873,2]
[408903967,1774423841321,-500.58525136,0.00015873,2]
[408903968,1774423841330,-500.0,0.00015873,2]
[408903969,1774423841340,-500.0,0.0001589,2]
[408903970,1774423841349,-500.0,0.0001589,2]
[408903971,1774423841358,-186.3716387,0.0001589,2]
[408903972,1774423841367,-500.0,0.0001589,2]
[408903973,1774423841377,-500.0,0.0001589,2]
[408903974,1774423841386,-500.0,0.0001589,2]
[408903975,1774423841395,-500.0,0.0001589,2]
[408903976,1774423841404,-385.51201537,0.0001589,2]
[408903977,1774423841413,-500.0,0.0001589,2]
[408903978,1774423841423,-491.89159985,0.0001589,2]
[408903979,1774423841432,-500.0,0.0001589,2]
[408903980,1774423841442,-500.0,0.0001589,2]
[408903981,1774423841451,-500.0,0.0001589,2]
[408903982,1774423841462,-2000.0,0.0001589,2]
[408903983,1774423841473,-335529.73057603,0.00015891,2]
[408903984,1774423841491,-248020.04767467,0.00015891,2]
[408903985,1774423841502,-13049.2508262,0.00015891,2]
[408903986,1774423841511,-186.82622918,0.000159,2]
[408903987,1774423841520,-2076.06,0.000159,2]
[408903988,1774423841528,-697.2,0.000159,2]
[408903989,1774423841538,-2584.73707335,0.000159,2]
[408903990,1774423841547,-2389.74,0.000159,2]
[408903991,1774423841556,-476.32540456,0.000159,2]
[408903992,1774423841566,-273.32274274,0.000159,2]
[408903993,1774423841575,-2673.16,0.000159,2]
[408903994,1774423841584,-2627.10180087,0.000159,2]
[408903995,1774423841593,-392.31827386,0.000159,2]
[408903996,1774423841603,-389.0,0.000159,5]
[408903997,1774423841615,-308.0,0.000159,5]
[408903998,1774423841624,-402.63,0.00015917,2]
[408903999,1774423841634,-336.19373034,0.0001593,2]
[408904000,1774423841643,-247.0,0.00015946,2]
[408904001,1774423841652,-5888.0,0.00015955,2]
[408904002,1774423841661,-500.0,0.00015973,2]
[408904003,1774423841670,-500.0,0.00015973,2]
[408904004,1774423841679,-500.0,0.00015973,2]
[408904005,1774423841688,-500.0,0.00015973,2]
[408904006,1774423841697,-502.93024548,0.00015973,2]
[408904007,1774423841706,-500.0,0.00015973,2]
[408904008,1774423841715,-349.49866437,0.00015973,2]
[408904009,1774423841724,-500.0,0.00015973,2]
[408904010,1774423841734,-500.0,0.00015973,2]
[408904011,1774423841743,-500.0,0.00015973,2]
[408904012,1774423841752,-500.0,0.00015973,2]
[408904013,1774423841762,-500.0,0.00015973,2]
[408904014,1774423841771,-500.0,0.00015973,2]
[408904015,1774423841780,-407.9868591,0.00015973,2]
[408904016,1774423841789,-500.0,0.00015973,2]
[408904017,1774423841798,-500.0,0.00015973,2]
[408904018,1774423841808,-500.0,0.00015973,2]
[408904019,1774423841817,-500.6669805,0.00015973,2]
[408904020,1774423841827,-247.0,0.00015976,2]
[408904021,1774423841836,-152.29608993,0.00015976,2]
[408904022,1774423841845,-172.26314037,0.0001599,2]
[408904023,1774423841854,-172.26314037,0.0001599,2]
[408904024,1774423841864,-151.0,0.00015997,2]
[408904025,1774423841873,-151.0,0.00015997,2]
[408904026,1774423841882,-68362.27958127,0.00016,2]
[408904027,1774423841894,-802.57817455,0.00016,2]
[408904028,1774423842012,-221.66636008,0.00016,2]
[408904029,1774423842106,-331.79488458,0.00016,2]
[408904030,1774423842117,-2587.7984564,0.00016,2]
[408904031,1774423842129,-509.65562623,0.00016,2]
[408904032,1774423842141,-29184.9370734,0.00016,2]
[408904033,1774423842158,-301.92197159,0.00016,2]
[408904034,1774423842170,-1782190.99261569,0.00016,2]
[408904035,1774423842182,-522.9232407,0.00016,2]
[408904038,1774423843367,-6010.0,0.00015417,2]
[408904039,1774423843376,-3570.97694113,0.00016,2]
[408904040,1774423843388,-3905.22999317,0.00016,2]
[408904041,1774423843400,-1861963.87042241,0.00016,2]
[408904042,1774423843411,-88918.0226084,0.00016,2]
[408904043,1774423843422,-98188.44683561,0.00016,2]
[408904054,1774423845951,-2204.58069616,0.00016,2]
[408904059,1774423846227,-622.91755866,0.00016,2]
[408904062,1774423870611,5533.0,0.000113,5]
[408904066,1774423927329,176.0,0.00011852,2]
[408904067,1774423929110,168.0,0.00011852,2]
[408904068,1774423987418,176.0,0.00011852,2]
[408904069,1774424030451,435.23,7.209e-05,2]
[408904070,1774424030483,435.23,7.588e-05,2]
[408904071,1774424030532,435.23,7.968e-05,2]
[408904072,1774424030593,435.23,8.347e-05,2]
[408904073,1774424030783,435.23,8.727e-05,2]
[408904074,1774424030993,435.23,9.106e-05,2]
[408904075,1774424031199,435.23,9.486e-05,2]
[408904076,1774424031606,435.23,9.865e-05,2]
[408904077,1774424032019,435.23,0.00010244,2]
[408904078,1774424032211,435.23,0.00010624,2]
[408904079,1774424032392,435.23,0.00011003,2]
[408904080,1774424032583,435.23,0.00011383,2]
[408904081,1774424032774,435.23,0.00011762,2]
[408904082,1774424105736,159.0,0.00011852,2]
[408904084,1774424387820,-529.27,0.00012141,2]
[408904086,1774424563263,3368.79913627,0.00012141,2]
[408904087,1774424619131,-435.23,0.00012142,2]
[408904089,1774424736103,-369.77,0.000123,2]
[408904090,1774424736124,-435.23,0.00012521,2]
[408904091,1774424736144,-186.51565009,0.00012737,2]
[408904092,1774424912001,-1813.48434991,0.00012737,2]
[408904093,1774424958465,170.49,0.00010391,2]
[408904095,1774425032063,-194.21510534,0.00012784,2]
[408904096,1774425032074,-1852.42,0.0001284,2]
[408904097,1774425032083,-500.0,0.00012884,3]
[408904098,1774425032093,-126.40252841,0.000129,2]
[408904099,1774425032114,-308.82747159,0.000129,2]
[408904100,1774425032124,-250.0,0.00013,2]
[408904101,1774425032133,-1300.68,0.00013007,2]
[408904102,1774425032143,-300.0,0.00013086,2]
[408904103,1774425032151,-150.0,0.00013087,2]
[408904104,1774425032161,-1200.0,0.00013087,2]
[408904105,1774425032170,-300.0,0.00013087,2]
[408904106,1774425032178,-2097.93,0.00013088,2]
[408904107,1774425032187,-1303.56252841,0.00013088,2]
[408904108,1774425032200,-3994.67917432,0.00013088,2]
[408904109,1774425032212,-4701.74829727,0.00013088,2]
[408904110,1774425032222,-106.58784496,0.00013088,2]
[408904111,1774425032233,-500.0,0.00013088,2]
[408904112,1774425032244,-534.06656813,0.00013088,2]
[408904113,1774425032256,-390.37271931,0.00013088,2]
[408904114,1774425032267,-8468.9628676,0.00013088,2]
[408904115,1774425032277,-150.0,0.000131,2]
[408904116,1774425032286,-150.99,0.000131,2]
[408904118,1774425032300,-353.92,0.000131,2]
[408904119,1774425032310,-9443.8,0.000131,2]
[408904120,1774425032320,-3851.68,0.000131,2]
[408904121,1774425032330,-999.99,0.000131,2]
[408904122,1774425032340,-150.0,0.00013164,2]
[408904123,1774425032349,-151.0,0.0001318,2]
[408904124,1774425032359,-151.0,0.00013193,2]
[408904125,1774425032373,-151.0,0.000132,2]
[408904126,1774425032383,-151.0,0.00013211,2]
[408904127,1774425032392,-160.24957669,0.0001325,2]
[408904128,1774425032402,-408.89542598,0.0001325,2]
[408904129,1774425032411,-500.70912033,0.0001325,2]
[408904130,1774425032421,-500.0,0.0001325,2]
[408904131,1774425032430,-260.29116966,0.0001325,2]
[408904132,1774425032440,-160.24718652,0.0001325,2]
[408904133,1774425032449,-500.0,0.0001325,2]
[408904134,1774425032459,-1266.47440879,0.00013252,2]
[408904135,1774425032468,-435.23,0.0001328,2]
[408904136,1774425032478,-263.08,0.000133,2]
[408904137,1774425032488,-166.66,0.00013314,2]
[408904138,1774425032497,-500.0,0.00013352,2]
[408904139,1774425032507,-500.0,0.00013352,2]
[408904140,1774425032517,-500.0,0.00013352,2]
[408904141,1774425032527,-200.0,0.00013352,2]
[408904142,1774425032536,-500.0,0.00013352,2]
[408904143,1774425032547,-500.0,0.00013352,2]
[408904144,1774425032556,-500.0,0.00013352,2]
[408904145,1774425032566,-500.0,0.00013352,2]
[408904146,1774425032575,-501.93655267,0.00013352,2]
[408904147,1774425032585,-500.0,0.00013352,2]
[408904148,1774425032595,-500.0,0.00013352,2]
[408904149,1774425032605,-151.0,0.00013352,2]
[408904150,1774425032615,-500.0,0.00013352,2]
[408904151,1774425032624,-151.0,0.00013352,2]
[408904152,1774425032633,-500.0,0.00013352,2]
[408904153,1774425032643,-151.0,0.00013352,2]
[408904154,1774425032652,-151.0,0.00013352,2]
[408904155,1774425032661,-151.0,0.00013352,2]
[408904156,1774425032671,-151.0,0.00013352,2]
[408904157,1774425032680,-151.0,0.00013352,2]
[408904158,1774425032689,-151.0,0.00013352,2]
[408904159,1774425032699,-253.79687242,0.00013352,2]
[408904160,1774425032708,-151.0,0.00013352,2]
[408904161,1774425032718,-151.0,0.00013352,2]
[408904162,1774425032727,-151.0,0.00013352,2]
[408904163,1774425032737,-163.50092739,0.00013352,2]
[408904164,1774425032746,-1500.0,0.0001336,2]
[408904165,1774425032755,-500.0,0.0001355,2]
[408904166,1774425032766,-500.0,0.0001355,2]
[408904167,1774425032774,-500.0,0.0001355,2]
[408904168,1774425032784,-150.0,0.00013658,2]
[408904169,1774425032793,-435.23,0.00013659,2]
[408904170,1774425032802,-500.0,0.00013698,2]
[408904171,1774425032811,-500.0,0.00013698,2]
[408904172,1774425032820,-822.38,0.00013699,2]
[408904173,1774425032831,-1430.68,0.00013699,2]
[408904174,1774425032841,-166.66,0.00013753,2]
[408904175,1774425032850,-507.0,0.00014,2]
[408904176,1774425032860,-193.0,0.00014011,2]
[408904177,1774425032871,-250.0,0.00014011,2]
[408904178,1774425032882,-435.23,0.00014039,2]
[408904179,1774425032891,-800.0,0.00014082,2]
[408904180,1774425032900,-250.0,0.00014124,2]
[408904181,1774425032912,-166.66,0.00014193,2]
[408904182,1774425032921,-255.0,0.00014199,2]
[408904183,1774425032931,-214.4442,0.00014277,2]
[408904184,1774425032940,-563.0539,0.00014277,2]
[408904185,1774425032950,-2154.7257,0.00014277,2]
[408904186,1774425032959,-2314.25993528,0.00014277,2]
[408904187,1774425032969,-2089.2877,0.00014295,2]
[408904188,1774425032978,-772.83930074,0.00014316,2]
[408904189,1774425032988,-2000.0,0.00014329,2]
[408904190,1774425032998,-1600.0,0.00014339,2]
[408904191,1774425033007,-150.0,0.00014339,2]
[408904192,1774425033018,-4250.22,0.00014339,2]
[408904193,1774425033027,-420.0,0.00014351,2]
[408904194,1774425033038,-1100.0,0.00014356,2]
[408904195,1774425033048,-166.66,0.00014364,2]
[408904196,1774425033058,-122639.897,0.00014377,2]
[408904197,1774425033067,-1680.0,0.00014395,2]
[408904198,1774425033076,-197.2283,0.000144,2]
[408904199,1774425033086,-200.0,0.00014418,2]
[408904200,1774425033095,-435.23,0.00014418,2]
[408904201,1774425033105,-2314.25993525,0.00014457,2]
[408904202,1774425033114,-13556.79,0.00014477,2]
[408904203,1774425033124,-500.0,0.0001458,2]
[408904204,1774425033133,-500.0,0.0001458,2]
[408904205,1774425033143,-200.0,0.00014596,2]
[408904206,1774425033152,-166.66,0.00014632,2]
[408904207,1774425033162,-2314.25993525,0.00014638,2]
[408904208,1774425033171,-154.30546706,0.00014643,2]
[408904209,1774425033180,-166.66,0.00014666,2]
[408904210,1774425033190,-2314.25993525,0.00014818,2]
[408904211,1774425033200,-160.0,0.00014827,2]
[408904212,1774425033209,-979.16666667,0.00014827,2]
[408904213,1774425033218,-500.0,0.00014959,2]
[408904214,1774425033228,-166.66,0.00014968,2]
[408904215,1774425033237,-2544.55788819,0.0001499,2]
[408904216,1774425033247,-2314.25993525,0.00014998,2]
[408904217,1774425033256,-300.0,0.00015,2]
[408904218,1774425033266,-192.52107914,0.00015024,2]
[408904219,1774425033275,-166.66,0.00015072,2]
[408904220,1774425033285,-287.269857,0.00015165,7]
[408904221,1774425033299,-5888.0,0.00015175,2]
[408904222,1774425033308,-2314.25993525,0.00015179,2]
[408904223,1774425033317,-500.0,0.00015187,2]
[408904224,1774425033327,-165.91116936,0.00015187,2]
[408904225,1774425033336,-500.0,0.00015187,2]
[408904226,1774425033345,-500.0,0.00015187,2]
[408904227,1774425033355,-500.0,0.00015187,2]
[408904228,1774425033364,-500.0,0.00015187,2]
[408904229,1774425033373,-500.0,0.00015187,2]
[408904230,1774425033382,-500.0,0.00015187,2]
[408904231,1774425033392,-500.0,0.00015187,2]
[408904232,1774425033401,-500.0,0.00015187,2]
[408904233,1774425033410,-500.0,0.00015187,2]
[408904234,1774425033420,-500.0,0.00015187,2]
[408904235,1774425033430,-500.0,0.00015187,2]
[408904236,1774425033439,-463.59473681,0.00015187,2]
[408904237,1774425033449,-500.0,0.00015187,2]
[408904238,1774425033458,-500.0,0.00015187,2]
[408904239,1774425033467,-500.0,0.00015187,2]